bitfinex/quotes_SOLUSD_20250901
["timestamp","ask_amount","ask_price","bid_price","bid_amount"]
[1756748205510,0.72,198.53,198.49,40.28]
[1756748205704,0.72,198.52,198.49,40.28]
[1756748206490,0.72,198.55,198.49,40.28]
[1756748206902,0.72,198.54,198.47,0.14216157]
[1756748207111,0.72,198.54,198.45,0.12]
[1756748207301,0.72,198.54,198.46,40.26]
[1756748207507,0.72,198.53,198.46,40.26]
[1756748207690,0.72,198.52,198.46,40.26]
[1756748208921,3.36643717,198.57,198.49,0.12]
[1756748208922,0.72,198.51,198.49,0.12]
[1756748209327,0.72,198.51,198.5,40.24]
[1756748210811,0.72,198.55,198.5,40.24]
[1756748211214,0.72,198.54,198.5,40.24]
[1756748211421,0.72,198.53,198.5,40.24]
[1756748213016,0.72,198.53,198.49,0.12]
[1756748213313,0.72,198.52,198.5,40.22]
[1756748214626,0.72,198.51,198.49,0.12]
[1756748214840,0.72,198.51,198.5,40.2]
[1756748215309,0.72,198.53,198.5,40.2]
[1756748215514,0.72,198.52,198.5,40.2]
[1756748215844,0.72,198.51,198.5,40.2]
[1756748216436,0.72,198.51,198.49,0.12]
[1756748216613,3.36688413,198.54,198.5,40.2]
[1756748217236,0.72,198.53,198.5,40.2]
[1756748217442,0.72,198.52,198.5,40.2]
[1756748217740,0.72,198.51,198.5,40.2]
[1756748217910,0.72,198.51,198.49,0.12]
[1756748218107,3.36688413,198.54,198.5,40.2]
[1756748218108,3.36688413,198.53,198.5,40.2]
[1756748218307,3.36688413,198.53,198.49,0.12]
[1756748218551,26.0,198.52,198.51,39.94000466]
[1756748218759,30.08688413,198.52,198.51,39.94000466]
[1756748219544,26.72,198.52,198.51,39.94000466]
[1756748219732,30.08566704,198.52,198.51,39.94000466]
[1756748220124,26.72,198.52,198.51,39.94000466]
[1756748220438,30.0854679,198.52,198.51,39.94000466]
[1756748220626,26.72,198.52,198.51,39.94000466]
[1756748220823,26.72,198.52,198.49,0.12]
[1756748221031,0.72,198.51,198.5,40.2]
[1756748221553,0.72,198.51,198.49,0.12]
[1756748221752,13.59559401,198.49,198.47,0.12]
[1756748221956,0.14216157,198.5,198.47,0.12]
[1756748221957,4.08519684,198.48,198.47,0.12]
[1756748222819,26.0,198.53,198.47,0.12]
[1756748223016,0.03,198.58,198.47,0.79]
[1756748223017,2.049845,198.56,198.47,0.79]
[1756748223250,28.769845,198.56,198.47,0.79]
[1756748223546,26.0,198.53,198.47,0.79]
[1756748224043,26.72,198.54,198.48,40.2]
[1756748224247,3.36582476,198.53,198.48,40.2]
[1756748224537,0.72,198.52,198.48,40.2]
[1756748224739,26.72,198.55,198.48,40.87]
[1756748224943,26.71,198.55,198.48,40.2]
[1756748225247,3.36668018,198.54,198.48,40.2]
[1756748225433,3.36668018,198.54,198.48,40.92]
[1756748225640,26.0,198.55,198.49,0.72]
[1756748225853,26.03,198.56,198.49,0.72]
[1756748226451,0.03,198.56,198.49,0.72]
[1756748226662,0.71,198.55,198.47,0.12]
[1756748226830,4.07907806,198.55,198.47,0.12]
[1756748227146,4.07907806,198.55,198.48,40.2]
[1756748227448,26.71,198.54,198.48,40.2]
[1756748227661,26.71,198.54,198.48,40.32]
[1756748227662,4.07907806,198.53,198.48,40.32]
[1756748227840,0.71,198.52,198.48,40.32]
[1756748228035,26.0,198.5,198.48,0.12]
[1756748228358,4.07942906,198.49,198.48,0.12]
[1756748228526,30.07942906,198.49,198.48,0.12]
[1756748230027,29.36942906,198.49,198.48,0.12]
[1756748230225,3.36942906,198.49,198.48,0.12]
[1756748230426,2.66618221,198.53,198.48,0.84]
[1756748230629,0.03,198.53,198.49,0.72]
[1756748230857,0.03,198.53,198.5,0.72]
[1756748231050,0.03,198.53,198.51,40.28]
[1756748231353,0.03,198.53,198.51,41.0]
[1756748231565,0.03,198.53,198.51,40.28]
[1756748232354,0.03,198.53,198.52,0.72]
[1756748232935,0.03,198.53,198.51,40.28]
[1756748233334,0.03,198.53,198.49,0.72]
[1756748233674,0.03,198.53,198.5,40.28]
[1756748233958,0.74,198.53,198.5,40.28]
[1756748234658,0.03,198.53,198.51,0.72]
[1756748236037,0.03,198.53,198.48,0.12]
[1756748236237,0.03,198.53,198.49,40.28]
[1756748236438,26.0,198.52,198.49,41.0]
[1756748236934,0.03,198.53,198.49,40.28]
[1756748238356,0.74,198.53,198.5,40.24]
[1756748239438,0.71,198.52,198.48,0.12]
[1756748239937,26.0,198.51,198.48,0.12]
[1756748240152,4.08401027,198.5,198.48,0.12]
[1756748240350,26.0,198.49,198.48,0.12]
[1756748240659,29.37401027,198.49,198.48,0.12]
[1756748241159,3.37401027,198.49,198.48,0.12]
[1756748241461,3.37401027,198.51,198.48,0.12]
[1756748241770,0.71,198.49,198.48,0.12]
[1756748242749,21.9693689,198.49,198.48,0.12]
[1756748242946,23.9902339,198.49,198.48,0.12]
[1756748243350,19.84263085,198.49,198.48,0.12]
[1756748245254,10.3275266,198.49,198.48,0.12]
[1756748245448,3.37401027,198.49,198.48,0.12]
[1756748245651,0.71,198.49,198.48,0.12]
[1756748245859,4.08401027,198.49,198.48,0.12]
[1756748247138,0.71,198.49,198.48,0.12]
[1756748247461,4.09025653,198.49,198.48,0.12]
[1756748248243,8.3155772,198.49,198.48,0.12]
[1756748248974,30.93532067,198.49,198.48,0.12]
[1756748249185,8.3155772,198.49,198.48,0.12]
[1756748251782,7.6055772,198.49,198.48,0.12]
[1756748252479,33.6055772,198.49,198.48,0.12]
[1756748252774,8.3155772,198.49,198.48,0.12]
[1756748253180,4.93532067,198.49,198.48,0.12]
[1756748253475,34.3155772,198.49,198.48,0.12]
[1756748254586,13.73775558,198.48,198.47,0.12]
[1756748254882,22.69504225,198.48,198.47,0.12]
[1756748255091,17.77801211,198.48,198.47,0.12]
[1756748255261,43.41454548,198.48,198.47,0.12]
[1756748255460,37.77801211,198.48,198.47,0.12]
[1756748255675,77.99801211,198.48,198.47,0.12]
[1756748256273,86.4506358,198.48,198.47,0.12]
[1756748256586,37.77801211,198.48,198.47,0.12]
[1756748256753,17.77801211,198.48,198.47,0.12]
[1756748256962,37.77801211,198.48,198.47,0.12]
[1756748257872,17.77801211,198.48,198.47,0.12]
[1756748258076,37.77801211,198.48,198.47,0.12]
[1756748259065,77.99801211,198.48,198.47,0.12]
[1756748261199,37.77801211,198.48,198.47,0.12]
[1756748261361,77.99801211,198.48,198.47,0.12]
[1756748261727,80.63526183,198.48,198.47,0.12]
[1756748262392,40.41526183,198.48,198.47,0.12]
[1756748263573,80.63526183,198.48,198.47,0.12]
[1756748264262,40.41526183,198.48,198.47,0.12]
[1756748264684,26.14216157,198.46,198.45,0.12]
[1756748264884,3.5224181,198.46,198.45,0.12]
[1756748265195,0.80216157,198.46,198.45,0.12]
[1756748265498,26.2035901,198.46,198.45,0.12]
[1756748265895,6.2035901,198.46,198.45,0.12]
[1756748266093,2.82333357,198.46,198.45,0.12]
[1756748267197,6.2035901,198.46,198.45,0.12]
[1756748268016,19.79918411,198.46,198.45,0.12]
[1756748268179,60.03918411,198.46,198.45,0.12]
[1756748268379,65.65744507,198.46,198.45,0.12]
[1756748268579,24.75744507,198.46,198.45,0.12]
[1756748268803,19.13918411,198.46,198.45,0.12]
[1756748269221,19.79918411,198.46,198.45,0.12]
[1756748270013,60.03918411,198.46,198.45,0.12]
[1756748271929,65.65937899,198.46,198.45,0.12]
[1756748273118,85.65937899,198.46,198.45,0.12]
[1756748273515,80.03918411,198.46,198.45,0.12]
[1756748274008,33.73775558,198.45,198.44,0.12]
[1756748274209,37.11801211,198.45,198.44,0.12]
[1756748274523,33.73775558,198.44,198.43,0.12]
[1756748274724,26.0,198.32,198.28,0.2]
[1756748275232,26.0,198.3,198.29,0.72]
[1756748276234,30.09388794,198.3,198.29,0.72]
[1756748277432,26.0,198.3,198.29,0.72]
[1756748278030,28.022194,198.33,198.29,0.72]
[1756748278218,26.0,198.3,198.28,0.2]
[1756748278817,28.022194,198.33,198.29,0.72]
[1756748279145,26.0,198.3,198.28,0.2]
[1756748279346,30.01973358,198.3,198.28,0.2]
[1756748279533,4.01973358,198.3,198.28,0.2]
[1756748279844,26.0,198.31,198.28,0.2]
[1756748280538,26.0,198.31,198.29,0.72]
[1756748280852,2.022194,198.33,198.3,0.72]
[1756748281037,28.022194,198.33,198.31,0.72]
[1756748281341,28.022194,198.33,198.32,0.72]
[1756748281549,29.36772004,198.33,198.29,0.72]
[1756748281727,26.0,198.3,198.29,0.72]
[1756748283229,29.36713133,198.3,198.29,0.72]
[1756748283414,29.36713133,198.3,198.28,0.2]
[1756748283614,3.36713133,198.29,198.28,0.2]
[1756748283818,16.96272534,198.29,198.28,0.2]
[1756748284434,18.98542934,198.29,198.28,0.2]
[1756748286715,19.83759091,198.29,198.28,0.2]
[1756748288537,39.83759091,198.29,198.28,0.2]
[1756748288740,33.73775558,198.28,198.27,0.12]
[1756748288930,77.34488691,198.28,198.27,0.12]
[1756748289130,37.81488691,198.28,198.27,0.12]
[1756748289418,78.05488691,198.28,198.27,0.12]
[1756748291155,82.24755885,198.28,198.27,0.12]
[1756748291327,42.00755885,198.28,198.27,0.12]
[1756748291527,82.24755885,198.28,198.27,0.12]
[1756748292298,84.88750014,198.28,198.27,0.12]
[1756748293307,40.4548282,198.28,198.27,0.12]
[1756748293507,80.6948282,198.28,198.27,0.12]
[1756748294380,59.73775558,198.26,198.25,0.2]
[1756748294571,103.34488691,198.26,198.25,0.2]
[1756748294770,104.05488691,198.26,198.25,0.2]
[1756748295124,65.83861591,198.26,198.25,0.2]
[1756748295291,106.07861591,198.26,198.25,0.2]
[1756748297083,104.74798477,198.26,198.25,0.2]
[1756748297707,45.83861591,198.26,198.25,0.2]
[1756748297884,19.69645434,198.26,198.25,0.2]
[1756748298087,38.3658232,198.26,198.25,0.2]
[1756748298382,19.12861591,198.26,198.25,0.2]
[1756748298583,18.98645434,198.26,198.25,0.2]
[1756748298911,19.12861591,198.26,198.25,0.2]
[1756748299416,18.98645434,198.26,198.25,0.89]
[1756748299611,18.98645434,198.26,198.25,0.2]
[1756748299910,19.83861591,198.26,198.25,0.2]
[1756748300499,38.50798477,198.26,198.25,0.2]
[1756748302613,78.74798477,198.26,198.25,0.2]
[1756748303522,37.79798477,198.26,198.25,0.2]
[1756748303698,59.36861591,198.26,198.25,0.2]
[1756748303908,19.12861591,198.26,198.25,0.2]
[1756748304913,45.12861591,198.26,198.25,0.2]
[1756748305096,19.12861591,198.26,198.25,0.2]
[1756748305295,37.79798477,198.26,198.25,0.2]
[1756748305615,38.50798477,198.26,198.25,0.2]
[1756748305824,78.74798477,198.26,198.25,0.2]
[1756748306680,19.12861591,198.26,198.25,0.2]
[1756748306890,78.74798477,198.26,198.25,0.2]
[1756748307423,81.38821306,198.26,198.25,0.2]
[1756748307725,58.26496287,198.24,198.23,0.12]
[1756748307907,102.01425577,198.24,198.23,0.12]
[1756748308095,32.40712444,198.23,198.22,0.12]
[1756748308299,35.77425577,198.23,198.22,0.12]
[1756748308514,36.48425577,198.23,198.22,0.12]
[1756748309613,38.50829177,198.23,198.22,0.12]
[1756748309820,32.40712444,198.22,198.21,0.12]
[1756748310016,76.01425577,198.22,198.21,0.12]
[1756748310402,76.72425577,198.22,198.21,0.12]
[1756748311019,78.74849677,198.22,198.21,0.12]
[1756748314016,26.0,198.26,198.21,0.12]
[1756748314201,26.0,198.22,198.21,0.12]
[1756748314411,2.02424,198.22,198.21,0.81]
[1756748314625,28.02424,198.22,198.21,0.81]
[1756748315212,2.02424,198.22,198.21,0.81]
[1756748315735,28.02424,198.22,198.21,0.81]
[1756748316027,41.76199558,198.22,198.21,0.81]
[1756748317735,41.76199558,198.22,198.21,0.12]
[1756748319343,82.00199558,198.22,198.21,0.12]
[1756748321136,82.03199558,198.22,198.21,0.12]
[1756748324772,82.01199558,198.22,198.21,0.12]
[1756748324977,41.64983401,198.22,198.21,0.12]
[1756748325350,15.79199558,198.22,198.21,0.12]
[1756748327564,15.64983401,198.22,198.21,0.79]
[1756748328077,15.79199558,198.22,198.21,0.79]
[1756748329968,15.79199558,198.22,198.21,0.12]
[1756748333388,15.79199558,198.22,198.21,0.79]
[1756748335479,15.79199558,198.22,198.21,0.12]
[1756748336282,15.79199558,198.22,198.21,0.79]
[1756748337789,15.79199558,198.22,198.21,0.12]
[1756748342694,15.79199558,198.22,198.21,0.79]
[1756748343007,15.79199558,198.22,198.21,0.12]
[1756748344192,15.79199558,198.22,198.21,0.79]
[1756748345897,15.79199558,198.22,198.21,0.12]
[1756748346273,16.51199558,198.22,198.21,0.12]
[1756748346474,16.51199558,198.22,198.2,0.12]
[1756748346475,13.73775558,198.21,198.2,0.12]
[1756748346691,19.38447382,198.21,198.19,0.12]
[1756748346889,0.14216157,198.19,198.18,0.12]
[1756748347217,0.86216157,198.19,198.18,0.12]
[1756748347697,0.14216157,198.19,198.18,0.12]
[1756748348075,0.86216157,198.19,198.18,0.12]
[1756748348272,0.14216157,198.19,198.18,0.12]
[1756748349203,0.86216157,198.19,198.18,0.12]
[1756748350297,0.14216157,198.19,198.18,0.12]
[1756748350520,147.39559401,198.21,198.18,0.12]
[1756748350684,13.59559401,198.19,198.18,0.12]
[1756748350878,13.59559401,198.21,198.18,0.12]
[1756748351077,26.0,198.19,198.18,0.12]
[1756748351492,13.59559401,198.21,198.18,0.12]
[1756748351803,26.0,198.19,198.18,0.83]
[1756748353790,41.17873,198.19,198.18,0.83]
[1756748357083,54.91648558,198.19,198.18,0.12]
[1756748357283,55.63648558,198.19,198.18,0.12]
[1756748357896,147.53775558,198.18,198.17,0.12]
[1756748358094,20.10079555,198.18,198.17,0.12]
[1756748359703,22.74206954,198.18,198.17,0.12]
[1756748360294,17.09902957,198.18,198.17,0.12]
[1756748360700,16.37902957,198.18,198.17,0.12]
[1756748360901,17.09902957,198.18,198.17,0.12]
[1756748361108,16.37902957,198.18,198.17,0.12]
[1756748361302,17.09902957,198.18,198.17,0.12]
[1756748361709,16.37902957,198.18,198.17,0.12]
[1756748365233,17.09902957,198.18,198.17,0.12]
[1756748365399,22.74206954,198.18,198.17,0.12]
[1756748365602,17.09902957,198.18,198.17,0.12]
[1756748366218,57.27902957,198.18,198.17,0.12]
[1756748366713,16.37902957,198.18,198.17,0.12]
[1756748366901,17.09902957,198.18,198.17,0.12]
[1756748367302,16.236868,198.18,198.17,0.83]
[1756748367515,2.64127399,198.18,198.17,0.83]
[1756748368222,2.78343556,198.18,198.17,0.83]
[1756748369605,16.37902957,198.18,198.17,0.12]
[1756748373507,17.09902957,198.18,198.17,0.12]
[1756748376428,13.73775558,198.17,198.16,0.12]
[1756748376722,14.43775558,198.17,198.16,0.12]
[1756748378220,53.89775558,198.17,198.16,0.12]
[1756748378539,54.59775558,198.17,198.16,0.12]
[1756748379613,56.62250858,198.17,198.16,0.12]
[1756748382130,16.46250858,198.17,198.16,0.12]
[1756748382341,55.92250858,198.17,198.16,0.12]
[1756748382807,56.62250858,198.17,198.16,0.12]
[1756748383431,16.46250858,198.17,198.16,0.12]
[1756748383930,15.62034701,198.17,198.16,0.78]
[1756748384130,19.84137538,198.17,198.16,0.78]
[1756748385132,19.98353695,198.17,198.16,0.78]
[1756748385919,2.024753,198.17,198.16,0.78]
[1756748386116,28.024753,198.17,198.16,0.78]
[1756748386415,2.024753,198.17,198.16,0.78]
[1756748386614,32.24578137,198.17,198.16,0.78]
[1756748386917,19.98353695,198.17,198.16,0.78]
[1756748388026,19.98353695,198.17,198.16,0.12]
[1756748388214,15.76250858,198.17,198.16,0.12]
[1756748389020,150.26250858,198.17,198.16,0.12]
[1756748389225,16.46250858,198.17,198.16,0.12]
[1756748389649,41.76250858,198.17,198.16,0.12]
[1756748389816,15.76250858,198.17,198.16,0.12]
[1756748391144,41.76250858,198.17,198.16,0.12]
[1756748391447,15.76250858,198.17,198.16,0.12]
[1756748392119,16.46250858,198.17,198.16,0.12]
[1756748392946,15.76250858,198.17,198.16,0.12]
[1756748394948,16.46250858,198.17,198.16,0.12]
[1756748395441,21.40554855,198.17,198.16,0.12]
[1756748396019,47.40554855,198.17,198.16,0.12]
[1756748396342,21.40554855,198.17,198.16,0.12]
[1756748397234,22.10554855,198.17,198.16,0.12]
[1756748398354,61.52554855,198.17,198.16,0.12]
[1756748399036,21.40554855,198.17,198.16,0.12]
[1756748399236,21.43554855,198.17,198.16,0.12]
[1756748400331,21.43554855,198.17,198.16,0.78]
[1756748400524,16.49250858,198.17,198.16,0.12]
[1756748401260,21.43462025,198.17,198.16,0.12]
[1756748401939,16.49250858,198.17,198.16,0.12]
[1756748402946,15.79250858,198.17,198.16,0.12]
[1756748403146,41.65034701,198.17,198.16,0.78]
[1756748403355,0.03,198.17,198.16,20.78]
[1756748404551,0.03,198.17,198.16,60.9]
[1756748405264,0.03,198.17,198.16,20.78]
[1756748405971,0.03,198.17,198.16,60.9]
[1756748406468,0.03,198.17,198.16,0.78]
[1756748406677,0.03,198.17,198.16,20.78]
[1756748407742,26.03,198.17,198.16,0.12]
[1756748407967,26.17216157,198.17,198.16,0.12]
[1756748410051,28.19629957,198.17,198.16,0.12]
[1756748410244,28.87629957,198.17,198.16,0.12]
[1756748411055,42.47189358,198.17,198.16,0.12]
[1756748412949,42.47189358,198.17,198.15,0.12]
[1756748412950,13.73775558,198.16,198.15,0.12]
[1756748413357,18.64532779,198.16,198.15,0.12]
[1756748413556,14.41775558,198.16,198.15,0.12]
[1756748414367,26.14216157,198.16,198.15,0.12]
[1756748415062,40.41775558,198.16,198.15,0.12]
[1756748415257,13.73775558,198.15,198.13,0.12]
[1756748415456,13.73775558,198.14,198.13,0.12]
[1756748415675,14.41775558,198.14,198.13,0.12]
[1756748415973,0.14216157,198.09,198.02,0.37]
[1756748416391,0.14216157,198.09,198.02,20.37]
[1756748416588,26.0,198.05,198.04,20.0]
[1756748416873,26.0,198.05,198.04,20.49]
[1756748417173,26.0,198.08,198.04,20.49]
[1756748417364,26.0,198.08,198.05,0.49]
[1756748417567,26.0,198.08,198.07,20.0]
[1756748417966,26.0,198.08,198.07,20.49]
[1756748419564,39.23035597,198.08,198.05,20.0]
[1756748419769,39.23035597,198.08,198.04,20.0]
[1756748419956,39.23035597,198.08,198.02,0.61]
[1756748420156,39.23035597,198.08,198.04,20.0]
[1756748420356,39.23035597,198.08,198.04,20.49]
[1756748420653,39.23035597,198.08,198.06,20.0]
[1756748420853,39.23035597,198.08,198.06,20.49]
[1756748421087,39.23035597,198.08,198.06,20.0]
[1756748421393,39.23035597,198.08,198.06,20.49]
[1756748421596,39.23035597,198.08,198.06,20.0]
[1756748421966,39.23035597,198.08,198.06,20.49]
[1756748422281,26.0,198.08,198.07,20.49]
[1756748422479,15.184107,198.11,198.08,20.0]
[1756748422796,15.184107,198.11,198.09,20.0]
[1756748422971,13.29149244,198.11,198.1,0.49]
[1756748423192,15.18257,198.13,198.1,0.49]
[1756748423373,28.37677555,198.13,198.1,0.49]
[1756748423679,26.0,198.11,198.1,0.49]
[1756748424081,26.68,198.11,198.07,20.0]
[1756748424382,26.68,198.1,198.05,60.1]
[1756748424586,26.68,198.1,198.06,20.0]
[1756748424797,26.0,198.1,198.06,20.0]
[1756748425001,0.68,198.09,198.03,20.0]
[1756748425161,13.59559401,198.03,198.02,0.12]
[1756748425483,14.41775558,198.03,198.02,0.12]
[1756748425982,16.44343158,198.03,198.02,0.12]
[1756748426154,15.76343158,198.03,198.02,0.12]
[1756748426358,2.025676,198.03,198.02,0.12]
[1756748426755,26.0,198.04,198.02,0.12]
[1756748426960,26.0,198.03,198.02,0.12]
[1756748428869,26.0,198.04,198.02,0.12]
[1756748429099,26.0,198.03,198.02,0.12]
[1756748429297,26.68,198.03,198.02,0.12]
[1756748430083,0.68,198.03,198.02,0.12]
[1756748430801,0.82216157,198.03,198.02,0.12]
[1756748430972,26.82216157,198.03,198.02,0.12]
[1756748431164,13.59559401,198.01,198.0,0.12]
[1756748431587,14.6136569,198.01,198.0,0.12]
[1756748431979,14.75581847,198.01,198.0,0.12]
[1756748433910,14.07581847,198.01,198.0,0.12]
[1756748434092,29.26684647,198.01,198.0,0.12]
[1756748434486,29.94684647,198.01,198.0,0.12]
[1756748435796,15.52909089,198.01,198.0,0.12]
[1756748436003,26.0,198.04,198.0,0.12]
[1756748436172,26.0,198.02,198.0,0.12]
[1756748436892,0.14216157,198.04,198.0,0.12]
[1756748437200,26.0,198.02,198.0,0.12]
[1756748438601,26.66,198.02,198.0,0.12]
[1756748438988,26.0,198.02,198.0,0.12]
[1756748439574,26.66,198.02,198.0,0.12]
[1756748440209,26.0,198.02,198.0,0.12]
[1756748440374,14.73581847,198.01,198.0,0.12]
[1756748442006,29.92992347,198.01,198.0,0.12]
[1756748442612,29.26992347,198.01,198.0,0.12]
[1756748443298,29.92992347,198.01,198.0,0.12]
[1756748444713,15.53216789,198.01,198.0,0.12]
[1756748444894,0.33806289,198.01,198.0,0.12]
[1756748445092,26.14216157,198.02,198.0,0.73]
[1756748445295,26.14216157,198.02,198.0,0.12]
[1756748445682,28.16783657,198.02,198.0,0.12]
[1756748446013,2.025675,198.02,198.0,0.73]
[1756748446513,26.0,198.05,198.0,0.73]
[1756748446718,17.83204106,198.06,198.01,0.61]
[1756748446926,26.0,198.03,198.02,20.0]
[1756748447091,26.0,198.03,198.02,20.61]
[1756748447290,7.04338908,198.09,198.03,20.0]
[1756748447511,26.0,198.06,198.03,20.0]
[1756748447727,26.0,198.06,198.03,20.61]
[1756748448088,26.0,198.06,198.03,20.0]
[1756748448506,0.66,198.05,198.01,20.0]
[1756748448692,26.0,198.06,198.02,0.61]
[1756748449001,26.0,198.06,198.01,20.0]
[1756748449002,26.66,198.06,198.01,20.0]
[1756748449402,26.0,198.04,198.0,20.73]
[1756748449617,26.66,198.04,198.0,0.12]
[1756748449813,26.66,198.04,198.0,20.12]
[1756748450421,26.0,198.04,198.0,20.12]
[1756748451120,26.03,198.04,198.0,20.12]
[1756748451417,26.03,198.04,198.01,20.61]
[1756748451627,26.03,198.04,198.01,20.0]
[1756748453242,26.03,198.04,198.02,0.61]
[1756748453430,0.03,198.04,198.03,20.61]
[1756748454501,0.03,198.04,198.03,20.0]
[1756748454701,0.03,198.04,198.02,20.0]
[1756748454896,0.03,198.04,198.01,20.0]
[1756748455117,0.66,198.03,198.0,20.12]
[1756748455320,0.66,198.02,198.0,0.12]
[1756748456006,0.66,198.01,198.0,0.12]
[1756748457131,0.66,198.03,198.0,0.12]
[1756748457336,0.66,198.02,198.0,0.12]
[1756748457917,0.66,198.01,198.0,0.12]
[1756748458122,26.66,198.01,198.0,0.12]
[1756748458711,26.0,198.01,198.0,20.12]
[1756748459125,26.0,198.01,198.0,0.12]
[1756748459435,26.66,198.01,198.0,0.12]
[1756748460137,26.66,198.01,198.0,20.12]
[1756748460138,26.0,198.01,198.0,20.12]
[1756748460347,26.0,198.01,198.0,20.73]
[1756748460641,26.03,198.04,198.01,20.0]
[1756748460941,0.03,198.04,198.02,20.0]
[1756748461143,0.03,198.04,198.03,20.0]
[1756748465530,0.03,198.04,198.02,60.08]
[1756748465742,0.03,198.04,198.03,20.0]
[1756748467431,0.71,198.04,198.03,40.08]
[1756748467627,0.71,198.04,198.03,60.08]
[1756748467850,0.03,198.04,198.03,60.08]
[1756748469139,0.03,198.04,198.03,60.69]
[1756748469549,0.03,198.04,198.01,20.0]
[1756748469759,0.03,198.04,198.03,40.08]
[1756748470133,26.03,198.04,198.03,40.08]
[1756748470657,26.03,198.04,198.02,20.0]
[1756748470835,26.03,198.04,198.03,40.08]
[1756748472452,26.03,198.04,198.02,20.0]
[1756748472649,30.2595513,198.04,198.03,40.08]
[1756748473170,30.9395513,198.04,198.03,40.08]
[1756748473370,26.71,198.04,198.03,40.08]
[1756748473583,26.71,198.04,198.02,20.0]
[1756748473873,26.03,198.04,198.03,40.08]
[1756748474572,26.71,198.04,198.03,40.08]
[1756748474779,30.9395513,198.04,198.01,0.12]
[1756748474974,27.04806289,198.04,198.02,40.08]
[1756748475279,27.04806289,198.04,198.01,0.12]
[1756748475280,0.68,198.03,198.01,0.12]
[1756748475438,4.22716773,198.03,198.02,40.08]
[1756748475640,4.22716773,198.03,198.01,0.12]
[1756748475943,4.22716773,198.03,198.02,40.08]
[1756748476256,4.90716773,198.03,198.02,40.08]
[1756748477236,4.90716773,198.03,198.01,0.12]
[1756748477237,0.14216157,198.02,198.01,0.12]
[1756748477452,0.82216157,198.02,198.01,40.2]
[1756748477838,19.41973373,198.03,198.01,40.2]
[1756748477839,30.22716773,198.03,198.01,40.2]
[1756748478070,26.0,198.02,198.01,0.12]
[1756748478244,26.68,198.02,198.01,40.2]
[1756748479555,26.68,198.02,198.01,0.12]
[1756748479772,44.64492331,198.02,198.01,0.12]
[1756748480067,4.90716773,198.02,198.01,40.2]
[1756748480354,6.93294573,198.02,198.01,40.2]
[1756748480555,4.90716773,198.02,198.01,40.2]
[1756748481965,138.02716773,198.03,198.01,40.2]
[1756748482171,0.68,198.02,198.01,0.12]
[1756748482344,4.90716773,198.02,198.01,40.2]
[1756748483776,18.64492331,198.02,198.01,0.12]
[1756748483945,14.41775558,198.02,198.01,0.12]